lending/lending_fUSD_20240621
["ID","MTS","AMOUNT","RATE_DAILY","PERIOD"]
[330086277,1718989875941,-500.0,0.00023835,4]
[330086278,1718989875952,-540.71,0.00023835,4]
[330086279,1718989875961,-838.13,0.00023835,4]
[330086280,1718989875971,-500.0,0.00023835,4]
[330086281,1718989875981,-535.25,0.00023835,4]
[330086282,1718989875991,-823.35,0.00023835,4]
[330086283,1718989876000,-887.04,0.00023835,4]
[330086284,1718989876010,-1378.35,0.00023835,4]
[330086285,1718989876019,-500.0,0.00023835,4]
[330086286,1718989876029,-500.0,0.00023835,4]
[330086287,1718989876039,-1812.66,0.00023835,4]
[330086288,1718989876049,-1256.45,0.00023835,4]
[330086289,1718989876058,-647.36,0.00023835,4]
[330086290,1718989876067,-772.11,0.00023835,4]
[330086291,1718989876077,-227.2086745,0.00023835,4]
[330086292,1718989876086,-500.0,0.00023835,4]
[330086293,1718989876101,-500.0,0.00023835,4]
[330086294,1718989876110,-939.73,0.00023835,4]
[330086295,1718989876119,-500.0,0.00023835,4]
[330086296,1718989876128,-1304.96,0.00023835,4]
[330086297,1718989876140,-500.0,0.00023835,4]
[330086298,1718989876215,-1184.79,0.00023835,4]
[330086299,1718989876225,-479.94,0.00023835,4]
[330086300,1718989876235,-171.33,0.00023835,4]
[330086301,1718989876248,-500.0,0.00023835,4]
[330086302,1718989876258,-1482.67,0.00023835,4]
[330086303,1718989876267,-1172.14,0.00023835,4]
[330086304,1718989876276,-500.0,0.00023835,4]
[330086305,1718989876285,-500.0,0.00023835,4]
[330086306,1718989876296,-500.0,0.00023835,4]
[330086307,1718989876305,-1060.14,0.00023835,4]
[330086308,1718989876315,-3886.53,0.00023835,4]
[330086309,1718989876324,-654.99,0.00023835,4]
[330086310,1718989876334,-1021.14,0.00023835,4]
[330086311,1718989876343,-500.0,0.00023835,4]
[330086312,1718989876352,-25963.77,0.00023835,4]
[330086313,1718989876362,-1656.59,0.00023835,4]
[330086314,1718989876372,-1438.15,0.00023835,4]
[330086315,1718989876386,-500.0,0.00023835,4]
[330086316,1718989876396,-1558.07,0.00023835,4]
[330086317,1718989876408,-500.0,0.00023835,4]
[330086318,1718989876418,-1206.43,0.00023835,4]
[330086319,1718989876428,-1774.24,0.00023835,4]
[330086320,1718989876437,-1123.84,0.00023835,4]
[330086321,1718989876446,-1807.53,0.00023835,4]
[330086322,1718989876456,-1718.78,0.00023835,4]
[330086323,1718989876466,-500.0,0.00023835,4]
[330086324,1718989876476,-500.0,0.00023835,4]
[330086325,1718989876485,-500.0,0.00023835,4]
[330086326,1718989876495,-736.5,0.00023835,4]
[330086327,1718989876505,-500.0,0.00023835,7]
[330086328,1718989876515,-500.0,0.00023835,4]
[330086329,1718989876525,-180.0,0.00023855,2]
[330086330,1718989876534,-500.0,0.00023889,2]
[330086331,1718989876544,-2659.7732102,0.00023898,12]
[330086332,1718989876553,-301.56444465,0.000239,20]
[330086333,1718989876563,-14591.62,0.000239,2]
[330086334,1718989876572,-3920.37,0.000239,2]
[330086335,1718989876582,-9384.02401315,0.00023923,2]
[330086336,1718989876592,-9384.02401314,0.00023923,2]
[330086337,1718989876601,-9384.02401314,0.00023923,2]
[330086338,1718989876611,-189.86,0.00023999,2]
[330086339,1718989876621,-210.04989171,0.00024,2]
[330086340,1718989876631,-174.82061953,0.00024,2]
[330086341,1718989876640,-960.9941014,0.00024,2]
[330086342,1718989876651,-536432.6273825,0.00024,15]
[330086343,1718989876659,-1900.0,0.00024,10]
[330086344,1718989876668,-1800.0,0.00024,25]
[330086345,1718989876678,-269126.85724521,0.00024,3]
[330086346,1718989876688,-1622.28064965,0.00024,2]
[330086347,1718989876697,-234.36480998,0.00024,5]
[330086348,1718989876708,-2000.0,0.00024,2]
[330086349,1718989876718,-505.18,0.00024,4]
[330086350,1718989876727,-4706.39908602,0.00024,15]
[330086351,1718989876736,-75156.2068335,0.00024,3]
[330086352,1718989876745,-658.54157005,0.00024,5]
[330086353,1718989876755,-6020.0,0.00024,7]
[330086354,1718989876764,-59281.7233712,0.00024,5]
[330086355,1718989876774,-6421.9,0.00024,7]
[330086356,1718989876783,-6421.9,0.00024,7]
[330086357,1718989876792,-6421.9,0.00024,7]
[330086358,1718989876801,-6421.9,0.00024,7]
[330086359,1718989876810,-20000.10675286,0.00024,3]
[330086360,1718989876819,-151.0,0.00024,7]
[330086361,1718989876829,-5000.0,0.00024034,2]
[330086362,1718989876837,-1000.0,0.00024043,2]
[330086363,1718989876846,-2252.88128662,0.0002408,2]
[330086364,1718989876855,-1356.86,0.00024085,4]
[330086365,1718989876864,-3062.37,0.00024085,4]
[330086366,1718989876873,-1533.09,0.00024085,4]
[330086367,1718989876882,-5990.91,0.00024085,4]
[330086368,1718989876891,-1110.17,0.00024085,4]
[330086369,1718989876901,-11925.19,0.00024085,4]
[330086370,1718989876910,-3672.46,0.00024085,4]
[330086371,1718989876919,-6178.73,0.00024085,4]
[330086372,1718989876928,-1501.96,0.00024085,4]
[330086373,1718989876937,-500.0,0.00024085,4]
[330086374,1718989876946,-3518.52,0.00024085,4]
[330086375,1718989876954,-16602.73,0.00024085,4]
[330086376,1718989876964,-1989.12,0.00024097,4]
[330086377,1718989876973,-2398.6,0.00024097,4]
[330086378,1718989876982,-42723.34,0.00024097,4]
[330086379,1718989876991,-1860.96,0.00024097,4]
[330086380,1718989877000,-7757.24,0.00024097,4]
[330086381,1718989877008,-2969.44,0.00024097,4]
[330086382,1718989877017,-500.0,0.00024097,2]
[330086383,1718989877026,-2619.5,0.00024097,4]
[330086384,1718989877035,-4343.94,0.00024097,4]
[330086385,1718989877044,-946.76,0.00024097,4]
[330086386,1718989877053,-1067.33,0.00024097,4]
[330086387,1718989877063,-11069.13,0.00024097,4]
[330086388,1718989877073,-2041.56,0.00024097,4]
[330086389,1718989877082,-2855.93,0.00024097,4]
[330086390,1718989877092,-1902.36,0.00024097,4]
[330086391,1718989877102,-2646.94,0.00024097,4]
[330086392,1718989877114,-871.25,0.00024098,4]
[330086393,1718989877124,-2040.63,0.00024098,4]
[330086394,1718989877134,-1063.28,0.00024098,4]
[330086395,1718989877142,-2566.45,0.00024098,4]
[330086396,1718989877152,-1747.85,0.00024098,4]
[330086397,1718989877161,-574.66,0.00024098,4]
[330086398,1718989877170,-1705.93,0.00024098,4]
[330086399,1718989877180,-500.0,0.00024098,4]
[330086400,1718989877192,-500.0,0.00024098,4]
[330086401,1718989877202,-790.72,0.00024098,4]
[330086402,1718989877211,-500.0,0.00024098,4]
[330086403,1718989877221,-500.0,0.00024098,4]
[330086404,1718989877230,-614.11,0.00024098,4]
[330086405,1718989877239,-1508.15,0.00024098,4]
[330086406,1718989877248,-500.0,0.00024098,4]
[330086407,1718989877259,-655.33,0.00024098,4]
[330086408,1718989877268,-900.76,0.00024098,4]
[330086409,1718989877277,-1711.8,0.00024098,4]
[330086410,1718989877287,-500.0,0.00024098,4]
[330086411,1718989877296,-500.0,0.00024098,4]
[330086412,1718989877306,-1259.32,0.00024098,4]
[330086413,1718989877315,-169.67210335,0.00024098,4]
[330086414,1718989877324,-543.58,0.00024098,4]
[330086415,1718989877335,-1395.51,0.00024098,4]
[330086416,1718989877344,-500.0,0.00024098,4]
[330086417,1718989877353,-779.08,0.00024098,4]
[330086418,1718989877363,-882.56,0.00024098,4]
[330086419,1718989877372,-1115.61,0.00024098,4]
[330086420,1718989877382,-500.0,0.00024098,4]
[330086421,1718989877392,-500.0,0.00024098,4]
[330086422,1718989877401,-500.0,0.00024098,4]
[330086423,1718989877410,-500.0,0.00024098,4]
[330086424,1718989877420,-500.0,0.00024098,4]
[330086425,1718989877429,-500.0,0.00024098,4]
[330086426,1718989877438,-500.0,0.00024098,4]
[330086427,1718989877448,-231.51,0.00024098,4]
[330086428,1718989877457,-1759.77,0.00024098,4]
[330086429,1718989877466,-500.0,0.00024098,4]
[330086430,1718989877476,-489.52,0.00024098,4]
[330086431,1718989877485,-500.0,0.00024098,4]
[330086432,1718989877494,-500.0,0.00024098,4]
[330086433,1718989877504,-500.0,0.00024098,4]
[330086434,1718989877513,-562.58,0.00024098,4]
[330086435,1718989877522,-500.0,0.00024098,4]
[330086436,1718989877531,-1118.22,0.00024098,4]
[330086437,1718989877540,-212.93117015,0.00024098,4]
[330086438,1718989877549,-500.0,0.00024098,4]
[330086439,1718989877559,-1073.61,0.00024098,4]
[330086440,1718989877568,-500.0,0.00024098,4]
[330086441,1718989877577,-1028.37,0.00024098,4]
[330086442,1718989877586,-565.65,0.00024098,4]
[330086443,1718989877596,-1694.42,0.00024098,4]
[330086444,1718989877606,-500.0,0.00024098,4]
[330086445,1718989877614,-538.43,0.00024098,4]
[330086446,1718989877624,-500.0,0.00024098,4]
[330086447,1718989877633,-1124.0,0.00024098,4]
[330086448,1718989877643,-1310.65,0.00024098,4]
[330086449,1718989877652,-500.0,0.00024098,4]
[330086450,1718989877662,-562.76,0.00024098,4]
[330086451,1718989877671,-500.0,0.00024098,4]
[330086452,1718989877681,-500.0,0.00024098,4]
[330086453,1718989877690,-500.0,0.00024098,4]
[330086454,1718989877700,-1974.58,0.00024098,4]
[330086455,1718989877709,-1560.47,0.00024098,4]
[330086456,1718989877719,-1456.87,0.00024098,4]
[330086457,1718989877728,-500.0,0.00024098,4]
[330086458,1718989877737,-500.0,0.00024098,4]
[330086459,1718989877746,-1350.6,0.00024098,4]
[330086460,1718989877756,-766.53,0.00024098,4]
[330086461,1718989877765,-500.0,0.00024098,4]
[330086462,1718989877775,-209.58,0.00024098,4]
[330086463,1718989877784,-500.0,0.00024098,4]
[330086464,1718989877794,-1549.35,0.00024098,4]
[330086465,1718989877803,-1457.49,0.00024098,4]
[330086466,1718989877812,-500.0,0.00024098,4]
[330086467,1718989877822,-1276.6,0.00024098,4]
[330086468,1718989877832,-607.75,0.00024098,4]
[330086469,1718989877842,-661.51,0.00024098,4]
[330086470,1718989877851,-616.1,0.00024098,4]
[330086471,1718989877861,-759.07,0.00024098,4]
[330086472,1718989877871,-1007.76,0.00024098,4]
[330086473,1718989877880,-558.75,0.00024098,4]
[330086474,1718989877890,-520.63,0.00024098,4]
[330086475,1718989877899,-500.0,0.00024098,4]
[330086476,1718989877911,-500.0,0.00024098,4]
[330086477,1718989877921,-500.0,0.00024098,4]
[330086478,1718989877931,-750.4,0.00024098,4]
[330086479,1718989877940,-500.0,0.00024098,4]
[330086480,1718989877949,-500.0,0.00024098,4]
[330086481,1718989877959,-500.0,0.00024098,4]
[330086482,1718989877968,-500.0,0.00024098,4]
[330086483,1718989877977,-674.53,0.00024098,4]
[330086484,1718989877987,-919.98,0.00024098,4]
[330086485,1718989877997,-500.0,0.00024098,4]
[330086486,1718989878007,-1723.58,0.00024098,4]
[330086487,1718989878017,-500.0,0.00024098,4]
[330086488,1718989878026,-500.0,0.00024098,4]
[330086489,1718989878036,-572.44,0.00024098,4]
[330086490,1718989878045,-966.63,0.00024098,4]
[330086491,1718989878055,-500.0,0.00024098,4]
[330086492,1718989878065,-500.0,0.00024098,4]
[330086493,1718989878074,-574.64,0.00024098,4]
[330086494,1718989878084,-500.0,0.00024098,4]
[330086495,1718989878097,-551.74,0.00024098,4]
[330086496,1718989878106,-500.0,0.00024098,4]
[330086497,1718989878116,-500.0,0.00024098,4]
[330086498,1718989878125,-853.88,0.00024098,4]
[330086499,1718989878135,-769.31,0.00024098,4]
[330086500,1718989878145,-500.0,0.00024098,4]
[330086501,1718989878156,-584.18,0.00024098,4]
[330086502,1718989878165,-754.91,0.00024098,4]
[330086503,1718989878178,-500.0,0.00024098,4]
[330086504,1718989878188,-500.0,0.00024098,4]
[330086505,1718989878199,-667.94,0.00024098,4]
[330086506,1718989878208,-920.79,0.00024098,4]
[330086507,1718989878218,-2478.71,0.00024098,4]
[330086508,1718989878227,-843.52,0.00024098,4]
[330086509,1718989878237,-1915.42,0.00024098,4]
[330086510,1718989878246,-878.77,0.00024098,4]
[330086511,1718989878255,-500.0,0.00024098,4]
[330086512,1718989878266,-1207.42,0.00024098,4]
[330086513,1718989878275,-500.0,0.00024098,4]
[330086514,1718989878284,-1304.29,0.00024098,4]
[330086515,1718989878294,-944.02,0.00024098,4]
[330086516,1718989878303,-500.0,0.00024098,4]
[330086517,1718989878312,-500.0,0.00024098,4]
[330086518,1718989878322,-729.79,0.00024098,4]
[330086519,1718989878332,-1256.24,0.00024098,4]
[330086520,1718989878341,-500.0,0.00024098,4]
[330086521,1718989878351,-1422.04,0.00024098,4]
[330086522,1718989878360,-656.57,0.00024098,4]
[330086523,1718989878370,-1852.92,0.00024098,4]
[330086524,1718989878380,-625.57,0.00024098,4]
[330086525,1718989878389,-500.0,0.00024098,4]
[330086526,1718989878399,-666.91,0.00024098,4]
[330086527,1718989878410,-1499.6,0.00024098,4]
[330086528,1718989878420,-765.5,0.00024098,4]
[330086529,1718989878429,-2424.04,0.00024098,4]
[330086530,1718989878439,-500.0,0.00024098,4]
[330086531,1718989878448,-4987.88,0.00024098,4]
[330086532,1718989878457,-2211.22,0.00024098,4]
[330086533,1718989878466,-787.23,0.00024098,4]
[330086534,1718989878476,-915.87,0.00024098,4]
[330086535,1718989878485,-637.63,0.00024098,4]
[330086536,1718989878495,-1221.9,0.00024098,4]
[330086537,1718989878504,-500.0,0.00024098,4]
[330086538,1718989878513,-1018.75,0.00024098,4]
[330086539,1718989878522,-501.59,0.00024098,4]
[330086540,1718989878532,-500.0,0.00024098,4]
[330086541,1718989878542,-500.0,0.00024098,4]
[330086542,1718989878551,-869.8,0.00024098,4]
[330086543,1718989878561,-500.0,0.00024098,8]
[330086544,1718989878571,-748.62,0.00024098,4]
[330086545,1718989878580,-2336.91,0.00024098,4]
[330086546,1718989878589,-1361.85,0.00024098,4]
[330086547,1718989878599,-1018.85,0.00024098,4]
[330086548,1718989878609,-16289.33,0.00024098,4]
[330086549,1718989878619,-500.0,0.00024098,4]
[330086550,1718989878628,-2349.59,0.00024098,4]
[330086551,1718989878637,-650.0,0.00024098,4]
[330086552,1718989878647,-500.0,0.00024098,4]
[330086553,1718989878660,-979.16,0.00024098,4]
[330086554,1718989878670,-772.03,0.00024098,4]
[330086555,1718989878679,-1085.42,0.00024098,4]
[330086556,1718989878689,-1856.06,0.00024098,4]
[330086557,1718989878700,-581.94,0.00024098,4]
[330086558,1718989878709,-1071.94,0.00024098,4]
[330086559,1718989878720,-500.0,0.00024098,4]
[330086560,1718989878729,-676.76,0.00024098,4]
[330086561,1718989878738,-1530.22,0.00024098,4]
[330086562,1718989878748,-500.0,0.00024098,4]
[330086563,1718989878758,-500.0,0.00024098,4]
[330086564,1718989878769,-500.0,0.00024098,4]
[330086565,1718989878778,-500.0,0.00024098,4]
[330086566,1718989878788,-508.95334661,0.00024098,4]
[330086567,1718989878798,-500.0,0.00024098,4]
[330086568,1718989878807,-500.0,0.00024098,4]
[330086569,1718989878817,-500.0,0.00024098,4]
[330086570,1718989878827,-1352.93,0.00024098,4]
[330086571,1718989878837,-828.24,0.00024098,4]
[330086572,1718989878847,-500.0,0.00024098,4]
[330086573,1718989878857,-500.0,0.00024098,4]
[330086574,1718989878867,-1938.16,0.00024098,4]
[330086575,1718989878877,-758.24,0.00024098,4]
[330086576,1718989878887,-500.0,0.00024098,4]
[330086577,1718989878896,-500.0,0.00024098,4]
[330086578,1718989878910,-500.0,0.00024098,4]
[330086579,1718989878920,-500.0,0.00024098,4]
[330086580,1718989878930,-500.0,0.00024098,4]
[330086581,1718989878940,-556.62,0.00024098,4]
[330086582,1718989878951,-2348.18,0.00024098,4]
[330086583,1718989878961,-500.0,0.00024098,4]
[330086584,1718989878971,-2261.53,0.00024098,4]
[330086585,1718989878981,-500.0,0.00024098,4]
[330086586,1718989878991,-500.0,0.00024098,4]
[330086587,1718989879001,-500.0,0.00024098,4]
[330086588,1718989879011,-500.0,0.00024098,4]
[330086589,1718989879020,-600.2,0.00024098,4]
[330086591,1718989879030,-500.0,0.00024098,4]
[330086592,1718989879039,-500.0,0.00024098,4]
[330086593,1718989879049,-500.0,0.00024098,4]
[330086594,1718989879059,-200.0,0.00024098,7]
[330086595,1718989879068,-517.92,0.00024098,4]
[330086596,1718989879078,-500.0,0.00024098,4]
[330086597,1718989879087,-1091.2,0.00024098,4]
[330086598,1718989879099,-559.32,0.00024098,4]
[330086599,1718989879112,-500.0,0.00024098,4]
[330086600,1718989879122,-500.0,0.00024098,4]
[330086601,1718989879131,-500.0,0.00024098,4]
[330086602,1718989879142,-1100.71,0.00024098,4]
[330086603,1718989879153,-12938.97,0.00024098,4]
[330086604,1718989879171,-1965.19,0.00024098,4]
[330086605,1718989879183,-638.92,0.00024098,4]
[330086606,1718989879193,-500.0,0.00024098,4]
[330086607,1718989879204,-635.23,0.00024098,4]
[330086608,1718989879214,-1762.14,0.00024098,4]
[330086609,1718989879224,-992.0,0.00024098,4]
[330086610,1718989879234,-1859.99,0.00024098,4]
[330086611,1718989879243,-500.0,0.00024098,4]
[330086612,1718989879252,-656.75,0.00024098,4]
[330086613,1718989879262,-2222.41,0.00024098,4]
[330086614,1718989879271,-860.86,0.00024098,4]
[330086615,1718989879280,-1049.63,0.00024098,4]
[330086616,1718989879290,-672.47,0.00024098,4]
[330086617,1718989879300,-500.0,0.00024098,4]
[330086618,1718989879309,-3375.56,0.00024098,4]
[330086619,1718989879319,-2480.67,0.00024098,4]
[330086620,1718989879329,-652.86,0.00024098,4]
[330086621,1718989879338,-500.0,0.00024098,4]
[330086622,1718989879347,-500.0,0.00024098,4]
[330086623,1718989879357,-2569.55,0.00024098,4]
[330086624,1718989879366,-500.0,0.00024098,4]
[330086625,1718989879375,-1041.08380419,0.000241,2]
[330086626,1718989879385,-500.0,0.00024108,4]
[330086627,1718989879394,-1833.6,0.00024108,4]
[330086628,1718989879404,-1662.17,0.00024108,4]
[330086629,1718989879419,-1196.01,0.00024108,4]
[330086630,1718989879427,-1323.04,0.00024108,4]
[330086631,1718989879437,-1815.14,0.00024108,4]
[330086632,1718989879446,-1488.18,0.00024108,4]
[330086633,1718989879455,-657.08,0.00024108,4]
[330086634,1718989879463,-794.21,0.00024108,4]
[330086635,1718989879473,-2173.9,0.00024108,4]
[330086636,1718989879482,-1700.13,0.00024108,4]
[330086637,1718989879491,-703.12,0.00024108,4]
[330086638,1718989879499,-500.0,0.00024108,4]
[330086639,1718989879509,-500.0,0.00024108,4]
[330086640,1718989879518,-500.0,0.00024108,4]
[330086641,1718989879528,-1792.19,0.00024108,4]
[330086642,1718989879538,-645.07,0.00024108,4]
[330086643,1718989879548,-500.0,0.00024108,4]
[330086644,1718989879557,-500.0,0.00024108,4]
[330086645,1718989879566,-831.31,0.00024108,4]
[330086646,1718989879576,-1274.46,0.00024108,4]
[330086647,1718989879586,-500.0,0.00024108,4]
[330086648,1718989879595,-500.0,0.00024108,4]
[330086649,1718989879604,-1390.32,0.00024108,4]
[330086650,1718989879614,-2085.31,0.00024108,4]
[330086651,1718989879624,-2038.36,0.00024108,4]
[330086652,1718989879634,-500.0,0.00024108,4]
[330086653,1718989879643,-961.12,0.00024108,4]
[330086654,1718989879653,-875.07,0.00024108,4]
[330086655,1718989879666,-500.0,0.00024108,4]
[330086656,1718989879675,-727.93,0.00024108,4]
[330086657,1718989879685,-1432.85,0.00024108,4]
[330086658,1718989879694,-1981.72,0.00024108,4]
[330086659,1718989879703,-500.0,0.00024108,4]
[330086660,1718989879712,-1176.2,0.00024108,4]
[330086661,1718989879721,-500.0,0.00024108,4]
[330086662,1718989879730,-1836.11,0.00024108,4]
[330086663,1718989879741,-1666.62,0.00024108,4]
[330086664,1718989879751,-1088.29,0.00024108,4]
[330086665,1718989879761,-500.0,0.00024108,4]
[330086666,1718989879771,-500.0,0.00024108,4]
[330086667,1718989879780,-500.0,0.00024108,4]
[330086668,1718989879790,-1712.42,0.00024108,4]
[330086669,1718989879800,-864.04,0.00024108,4]
[330086670,1718989879810,-1441.44,0.00024108,4]
[330086671,1718989879820,-500.0,0.00024108,4]
[330086672,1718989879830,-664.38,0.00024108,4]
[330086673,1718989879840,-914.89,0.00024108,4]
[330086674,1718989879851,-1656.03,0.00024108,4]
[330086675,1718989879860,-2699.53,0.00024108,4]
[330086676,1718989879870,-1310.25,0.00024108,4]
[330086677,1718989879879,-4009.92,0.00024108,4]
[330086678,1718989879889,-1193.59,0.00024108,4]
[330086679,1718989879898,-500.0,0.00024109,3]
[330086680,1718989879909,-500.0,0.00024109,4]
[330086681,1718989879918,-500.0,0.00024109,4]
[330086682,1718989879928,-710.94,0.00024109,4]
[330086683,1718989879938,-500.0,0.00024109,4]
[330086684,1718989879947,-797.24,0.00024109,4]
[330086685,1718989879957,-617.5,0.00024109,4]
[330086686,1718989879966,-500.0,0.00024109,4]
[330086687,1718989879975,-500.0,0.00024109,4]
[330086688,1718989879985,-500.0,0.00024109,4]
[330086689,1718989879994,-798.04,0.00024109,4]
[330086690,1718989880003,-735.75,0.00024109,4]
[330086691,1718989880012,-500.0,0.00024109,4]
[330086692,1718989880021,-500.0,0.00024109,4]
[330086693,1718989880030,-500.0,0.00024109,4]
[330086694,1718989880039,-754.93,0.00024109,4]
[330086695,1718989880049,-595.79,0.00024109,4]
[330086696,1718989880058,-738.1,0.00024109,4]
[330086697,1718989880067,-1205.55,0.00024109,4]
[330086698,1718989880076,-500.0,0.00024109,2]
[330086699,1718989880085,-500.0,0.00024109,4]
[330086700,1718989880098,-522.35,0.00024109,4]
[330086701,1718989880108,-985.93,0.00024109,4]
[330086702,1718989880117,-500.0,0.00024109,4]
[330086703,1718989880127,-668.33,0.00024109,4]
[330086704,1718989880137,-548.21,0.00024109,4]
[330086705,1718989880147,-679.56,0.00024109,4]
[330086706,1718989880157,-500.0,0.00024109,4]
[330086707,1718989880166,-500.0,0.00024109,4]
[330086708,1718989880175,-500.0,0.00024109,4]
[330086709,1718989880186,-780.77,0.00024109,4]
[330086710,1718989880196,-582.75,0.00024109,4]
[330086711,1718989880206,-571.17548906,0.00024109,4]
[330086712,1718989880216,-500.0,0.00024109,4]
[330086713,1718989880226,-500.0,0.00024109,4]
[330086714,1718989880235,-500.0,0.00024109,4]
[330086715,1718989880245,-584.71,0.00024109,4]
[330086716,1718989880255,-563.5,0.00024109,4]
[330086717,1718989880265,-1042.2,0.00024109,4]
[330086718,1718989880274,-500.0,0.00024109,4]
[330086719,1718989880285,-588.19,0.00024109,4]
[330086720,1718989880294,-687.44,0.00024109,4]
[330086721,1718989880421,-811.36,0.00024109,4]
[330086722,1718989880430,-717.66,0.00024109,4]
[330086723,1718989880440,-621.56,0.00024109,4]
[330086724,1718989880449,-531.24,0.00024109,4]
[330086725,1718989880459,-500.0,0.00024109,4]
[330086726,1718989880468,-500.0,0.00024109,4]
[330086727,1718989880477,-1201.37,0.00024109,4]
[330086728,1718989880487,-500.0,0.00024109,4]
[330086729,1718989880496,-476.46438477,0.00024109,4]
[330086730,1718989880505,-392.62656489,0.00024109,4]
[330086731,1718989880515,-522.9,0.00024109,4]
[330086732,1718989880524,-742.2,0.00024109,4]
[330086733,1718989880534,-500.0,0.00024109,4]
[330086734,1718989880544,-500.0,0.00024109,4]
[330086735,1718989880554,-500.0,0.00024109,4]
[330086736,1718989880563,-1192.22,0.00024109,4]
[330086737,1718989880573,-500.0,0.00024109,4]
[330086738,1718989880582,-500.0,0.00024109,4]
[330086739,1718989880591,-938.16,0.00024109,4]
[330086740,1718989880601,-500.0,0.00024109,4]
[330086741,1718989880611,-1372.38,0.00024109,4]
[330086742,1718989880621,-446.19116064,0.00024109,4]
[330086743,1718989880630,-500.0,0.00024109,4]
[330086744,1718989880640,-500.0,0.00024109,4]
[330086745,1718989880649,-624.64,0.00024109,4]
[330086746,1718989880660,-500.0,0.00024109,4]
[330086747,1718989880670,-1457.99,0.00024109,4]
[330086748,1718989880687,-500.0,0.00024109,4]
[330086749,1718989880696,-511.55,0.00024109,4]
[330086750,1718989880706,-500.0,0.00024109,4]
[330086751,1718989880715,-206.38696228,0.00024109,4]
[330086752,1718989880728,-595.44,0.00024109,4]
[330086753,1718989880737,-500.0,0.00024109,4]
[330086754,1718989880748,-963.23,0.00024109,4]
[330086755,1718989880758,-759.23,0.00024109,4]
[330086756,1718989880770,-500.0,0.00024109,4]
[330086757,1718989880782,-1020.76,0.00024109,4]
[330086758,1718989880792,-500.0,0.00024109,4]
[330086759,1718989880801,-500.0,0.00024109,4]
[330086760,1718989880811,-1064.78,0.00024109,4]
[330086761,1718989880821,-873.22,0.00024109,4]
[330086762,1718989880831,-500.0,0.00024109,4]
[330086763,1718989880840,-500.0,0.00024109,4]
[330086764,1718989880849,-733.93,0.00024109,4]
[330086765,1718989880859,-2686.69,0.00024109,4]
[330086766,1718989880869,-1011.28,0.00024109,4]
[330086767,1718989880878,-852.94,0.00024109,4]
[330086768,1718989880887,-554.48,0.00024109,4]
[330086769,1718989880897,-500.0,0.00024109,4]
[330086770,1718989880908,-500.0,0.00024109,4]
[330086771,1718989880918,-500.0,0.00024109,4]
[330086772,1718989880928,-500.0,0.00024109,4]
[330086773,1718989880937,-500.0,0.00024109,4]
[330086774,1718989880947,-500.0,0.00024109,4]
[330086775,1718989880957,-500.0,0.00024109,4]
[330086776,1718989880967,-500.0,0.00024109,4]
[330086777,1718989880976,-500.0,0.00024109,4]